bitfinex-derivatives/quotes_ETHF0:USTF0_20260213
["timestamp","ask_amount","ask_price","bid_price","bid_amount"]
[1770998943765,0.54785562,2058.9,2057.5,0.55057539]
[1770998944356,9.14885562,2058.9,2057.5,0.55057539]
[1770998944559,0.54785562,2058.9,2057.5,0.55057539]
[1770998945461,0.54785562,2059.5,2057.6,5.14421548]
[1770998945765,0.54785562,2059.1,2057.8,0.18389803]
[1770998946365,0.54785562,2059.2,2057.8,0.18389803]
[1770998946569,0.5523608,2059.2,2057.8,0.18389803]
[1770998947064,0.00450518,2059.2,2057.8,0.18389803]
[1770998947259,0.00450518,2059.2,2058.0,0.18389803]
[1770998947461,0.54785562,2059.6,2058.0,0.18389803]
[1770998948475,0.55317434,2059.6,2058.0,0.18389803]
[1770998949171,0.55317434,2059.6,2058.2,0.1727461]
[1770998950263,0.54785562,2059.4,2058.2,0.1727461]
[1770998950661,0.54785562,2059.2,2058.2,0.1727461]
[1770998950867,0.54785562,2059.2,2058.1,1.0608]
[1770998950868,0.54785562,2060.7,2059.3,0.54597646]
[1770998951667,0.54785562,2060.5,2059.3,0.54597646]
[1770998951868,0.54785562,2060.1,2058.7,0.54597646]
[1770998952071,0.54785562,2060.1,2059.3,0.00465173]
[1770998952279,0.54785562,2060.1,2058.7,0.54597646]
[1770998952570,0.54785562,2060.1,2058.9,0.54597646]
[1770998952971,0.24282,2060.2,2058.2,0.54597646]
[1770998952972,0.54785562,2059.6,2058.2,0.54597646]
[1770998953164,0.54785562,2059.6,2058.2,0.00476444]
[1770998953165,0.54785562,2058.7,2058.2,0.00476444]
[1770998953368,0.55293816,2059.0,2058.2,0.00476444]
[1770998953672,0.00527478,2059.0,2058.2,0.5507409]
[1770998953871,0.54785562,2059.9,2058.4,0.54597646]
[1770998954176,0.54785562,2059.9,2058.6,0.54597646]
[1770998954373,0.54785562,2059.9,2058.8,0.54597646]
[1770998954677,0.54785562,2059.7,2058.5,0.54597646]
[1770998954971,0.5524125,2059.7,2058.5,0.54597646]
[1770998955168,0.54785562,2059.5,2058.2,0.5507409]
[1770998955363,0.54785562,2059.5,2058.4,0.54597646]
[1770998955562,0.54785562,2059.5,2058.6,0.54597646]
[1770998955965,0.00508254,2059.4,2058.6,0.54597646]
[1770998956167,0.55293816,2059.4,2058.3,0.54597646]
[1770998956369,0.55293816,2059.4,2058.5,0.54597646]
[1770998956370,0.54785562,2059.4,2058.5,0.54597646]
[1770998957171,0.54785562,2059.4,2058.2,0.5507409]
[1770998957475,0.54785562,2059.4,2058.4,0.54597646]
[1770998957669,0.54785562,2059.4,2058.5,1.1142267]
[1770998957974,0.54785562,2059.4,2058.2,0.5507409]
[1770998958274,0.54785562,2059.4,2058.3,0.56825438]
[1770998958475,0.54785562,2059.4,2058.2,0.5507409]
[1770998958772,0.55293816,2059.2,2058.3,0.56866584]
[1770998959074,0.54785562,2059.2,2058.2,0.5507409]
[1770998959270,0.54785562,2059.2,2058.3,0.56862803]
[1770998959466,0.54785562,2059.2,2058.2,0.00476444]
[1770998959665,0.54785562,2059.1,2058.2,0.00476444]
[1770998960273,0.55293816,2058.9,2058.2,0.00476444]
[1770998960469,0.54785562,2058.4,2058.2,0.00476444]
[1770998960778,0.54785562,2058.4,2057.5,0.54597646]
[1770998960974,0.54785562,2058.7,2057.7,0.54597646]
[1770998961180,0.54785562,2058.7,2057.8,0.56978202]
[1770998961379,0.54785562,2058.4,2057.1,0.54597646]
[1770998961678,0.54785562,2058.0,2057.1,0.00591981]
[1770998961879,0.00422223,2058.0,2057.1,0.55189627]
[1770998962374,0.55207785,2058.0,2057.1,0.55189627]
[1770998962578,0.55207785,2058.0,2057.1,0.00591981]
[1770998962579,0.54785562,2057.9,2057.1,0.00591981]
[1770998962771,0.54785562,2057.7,2056.8,0.54597646]
[1770998963372,0.00422223,2058.0,2056.8,0.54597646]
[1770998963765,0.00422223,2058.0,2056.8,0.55041572]
[1770998964474,0.00422223,2058.0,2057.1,0.54597646]
[1770998964679,0.55207785,2058.0,2057.1,0.54597646]
[1770998964978,0.55716039,2058.0,2057.1,0.54597646]
[1770998965380,0.55207785,2058.0,2057.1,0.54597646]
[1770998965679,0.00422223,2058.0,2057.1,0.54597646]
[1770998966082,0.54785562,2057.9,2056.8,0.55041572]
[1770998966379,0.54785562,2057.9,2056.2,3.28406124]
[1770998966380,0.54785562,2057.3,2056.2,3.28406124]
[1770998966676,0.54785562,2057.3,2056.2,0.54597646]
[1770998967279,0.54785562,2057.0,2056.2,0.55118199]
[1770998967679,0.00508254,2057.1,2055.7,5.4326123]
[1770998967680,0.54785562,2056.8,2055.7,3.28406124]
[1770998967878,0.54785562,2056.8,2055.7,0.54597646]
[1770998968284,0.54785562,2057.3,2056.0,0.54597646]
[1770998968478,0.24318,2057.2,2056.0,0.54597646]
[1770998968782,0.54785562,2057.1,2056.0,0.55062537]
[1770998969087,0.55293816,2056.8,2056.0,0.00464891]
[1770998969286,0.54785562,2056.8,2056.0,0.00464891]
[1770998969581,0.2432,2057.0,2056.0,0.00464891]
[1770998969582,0.24314,2057.5,2056.0,0.55062537]
[1770998969787,0.54785562,2056.8,2056.0,0.00464891]
[1770998970278,0.24324,2056.7,2056.0,0.00464891]
[1770998970486,0.00508254,2056.2,2055.4,0.54597646]
[1770998970683,0.54785562,2056.3,2055.4,0.54597646]
[1770998971186,0.00508254,2056.2,2055.4,0.54597646]
[1770998971388,0.5499367,2056.2,2055.1,0.57598069]
[1770998971588,0.5499367,2056.0,2055.1,0.58164991]
[1770998971989,0.00345777,2056.2,2055.1,0.58164991]
[1770998972286,0.55847701,2056.2,2055.1,0.58164991]
[1770998972479,0.55339447,2056.2,2055.1,0.58164991]
[1770998972877,0.55501924,2056.1,2055.1,0.58164991]
[1770998973387,0.55501924,2056.0,2055.2,0.5599468]
[1770998973684,0.55501924,2056.0,2055.1,0.58164991]
[1770998973685,0.00508254,2056.0,2055.3,1.13592749]
[1770998973892,0.55339447,2056.2,2055.4,1.13592749]
[1770998974089,0.55339447,2056.2,2055.5,0.5599468]
[1770998974291,0.55339447,2056.2,2055.6,0.5599468]
[1770998974491,0.5499367,2056.1,2055.7,0.27757061]
[1770998974695,0.00345777,2056.2,2055.3,0.57598069]
[1770998974895,0.00508254,2056.1,2055.3,0.57598069]
[1770998975393,0.5499367,2056.0,2055.1,0.58164991]
[1770998975894,0.00508254,2055.8,2055.1,0.58164991]
[1770998976091,0.00345777,2056.2,2055.1,0.58164991]
[1770998976092,0.55339447,2056.2,2055.1,0.58164991]
[1770998976487,0.00508254,2056.1,2055.1,0.58164991]
[1770998976688,0.55339447,2056.2,2055.1,0.58164991]
[1770998976886,0.00345777,2056.2,2055.1,0.58164991]
[1770998977090,0.55809452,2057.2,2055.1,0.58164991]
[1770998977294,0.56317706,2057.0,2055.1,0.58164991]
[1770998977494,0.55809452,2056.8,2055.1,0.58164991]
[1770998977697,0.55809452,2056.1,2055.1,0.00566922]
[1770998977894,3.57644712,2056.4,2055.1,0.00566922]
[1770998977895,0.55809452,2056.4,2055.2,0.52920901]
[1770998978087,0.56330929,2056.1,2055.2,0.52920901]
[1770998978899,0.55809452,2055.9,2055.2,0.52920901]
[1770998979497,0.55809452,2055.9,2055.1,0.00566922]
[1770998979696,0.00508254,2055.7,2055.1,0.00566922]
[1770998979895,0.55809452,2055.9,2055.1,0.00566922]
[1770998980390,0.00508254,2055.5,2055.1,0.00566922]
[1770998980591,0.55809452,2055.8,2055.1,0.00566922]
[1770998980793,0.00508254,2055.5,2055.1,0.00566922]
[1770998981095,0.55809452,2055.8,2054.5,0.52920901]
[1770998981292,0.24853477,2056.1,2054.5,0.52920901]
[1770998981293,0.55809452,2055.4,2054.5,0.52920901]
[1770998981693,0.00508254,2055.2,2054.5,0.52920901]
[1770998981894,0.24853477,2056.1,2054.5,0.52920901]
[1770998981895,0.55809452,2056.0,2054.5,0.52920901]
[1770998982095,0.55809452,2056.0,2054.5,0.53499984]
[1770998982299,0.00508254,2055.7,2054.5,0.53499984]
[1770998982495,0.55809452,2055.8,2054.5,0.53499984]
[1770998982697,0.00508254,2055.6,2054.5,0.53499984]
[1770998983099,0.55809452,2055.8,2054.5,0.53499984]
[1770998983298,0.55809452,2055.6,2054.5,0.53499984]
[1770998983695,0.00508254,2055.2,2054.5,0.53499984]
[1770998984100,0.55809452,2055.7,2054.5,0.53499984]
[1770998984599,0.55809452,2056.0,2054.5,0.53499984]
[1770998984803,0.56330929,2056.1,2054.9,0.52920901]
[1770998984992,0.00521477,2056.1,2055.1,0.52920901]
[1770998985198,0.01029731,2056.1,2055.1,0.52920901]
[1770998985400,0.00521477,2056.1,2055.1,0.52920901]
[1770998985900,0.56330929,2056.1,2055.1,0.52920901]
[1770998986100,0.00521477,2056.1,2055.1,0.52920901]
[1770998986301,0.56330929,2056.1,2055.1,0.52920901]
[1770998986496,0.00521477,2056.1,2055.3,0.52920901]
[1770998986698,0.00521477,2056.1,2055.5,0.52920901]
[1770998986900,0.00521477,2056.1,2055.7,0.52920901]
[1770998987199,0.55809452,2056.4,2055.8,0.55849328]
[1770998987403,0.55809452,2057.0,2055.9,1.08770229]
[1770998987606,0.55809452,2057.0,2056.0,0.55849328]
[1770998987904,0.55809452,2056.8,2056.1,0.55849328]
[1770998988098,0.56303103,2056.8,2056.2,0.55849328]
[1770998988297,0.56303103,2056.8,2056.1,0.00531392]
[1770998990004,0.56303103,2056.8,2055.5,0.52920901]
[1770998990400,0.55809452,2056.6,2055.5,0.52920901]
[1770998990997,0.55809452,2056.4,2055.5,0.53313529]
[1770998992104,0.55809452,2056.4,2055.5,0.00392628]
[1770998992305,0.55809452,2056.2,2055.5,0.00392628]
[1770998992608,0.55809452,2056.4,2055.5,0.53313529]
[1770998993113,0.55809452,2056.3,2055.5,0.00392628]
[1770998993503,3.11622364,2056.3,2055.5,0.00392628]
[1770998993704,0.55809452,2056.2,2055.5,0.00392628]
[1770998994104,0.55809452,2056.2,2055.1,0.52920901]
[1770998994908,0.55809452,2055.8,2054.8,4.64455073]
[1770998995104,0.55809452,2055.8,2054.9,4.82528496]
[1770998995402,0.55809452,2055.8,2055.0,5.35449397]
[1770998995608,0.55809452,2055.6,2054.8,0.00542777]
[1770998995798,0.55809452,2055.7,2054.8,0.53463678]
[1770998995999,0.55809452,2055.7,2054.9,5.36116125]
[1770998996206,3.11622364,2055.5,2054.8,0.00542777]
[1770998996506,0.55809452,2055.4,2054.3,4.64455073]
[1770998996712,0.55809452,2055.4,2054.4,4.80949535]
[1770998996915,0.55809452,2055.4,2054.3,0.52920901]
[1770998997113,0.55809452,2055.4,2054.4,4.77639695]
[1770998997314,0.55809452,2055.2,2054.3,0.52920901]
[1770998997503,0.00500647,2055.2,2054.5,0.52920901]
[1770998997708,0.00500647,2055.2,2054.6,5.30469598]
[1770998997908,0.00500647,2055.2,2054.6,0.52920901]
[1770998998309,0.00500647,2055.2,2054.3,0.00615629]
[1770998998310,0.00500647,2055.2,2054.8,0.52920901]
[1770998998611,0.55809452,2055.6,2054.9,4.77189183]
[1770998998808,0.55809452,2056.0,2054.8,0.52920901]
[1770998999007,0.55809452,2056.0,2054.7,4.11534172]
[1770998999008,0.55809452,2056.0,2055.0,0.52920901]
[1770998999208,0.55809452,2056.0,2055.1,5.30141599]
[1770998999406,0.55809452,2056.0,2055.1,0.52920901]
[1770998999608,0.56187919,2056.0,2055.1,0.52920901]
[1770999000210,0.55809452,2056.6,2055.3,0.52920901]
[1770999000410,0.55809452,2056.6,2055.5,0.52920901]
[1770999000611,0.55809452,2056.3,2055.3,4.64455073]
[1770999000812,0.55809452,2056.3,2055.3,0.52920901]
[1770999001317,0.56341003,2056.3,2055.3,0.52920901]
[1770999001906,0.5678168,2056.0,2055.0,4.66635142]
[1770999002116,0.5678168,2056.0,2054.9,0.5510097]
[1770999002317,0.5678168,2056.0,2055.1,0.5510097]
[1770999002614,0.5678168,2056.0,2054.9,4.66635142]
[1770999002915,0.5678168,2055.7,2054.9,0.5510097]
[1770999003311,0.45388584,2055.7,2054.9,0.5510097]
[1770999004914,0.45388584,2055.7,2054.7,0.5510097]
[1770999005218,0.45388584,2055.7,2054.9,0.5510097]
[1770999005419,0.45388584,2055.7,2054.3,0.00615629]
[1770999005420,0.5678168,2054.9,2054.3,0.00615629]
[1770999005715,0.5678168,2054.9,2053.8,0.5510097]
[1770999006116,0.5678168,2054.6,2053.5,0.5510097]
[1770999006720,0.5678168,2054.3,2053.5,0.55567356]
[1770999007220,0.5678168,2054.3,2053.5,0.00466386]
[1770999007919,0.5678168,2053.7,2052.7,0.5510097]
[1770999008114,0.5678168,2053.4,2052.3,0.5510097]
[1770999008317,6.23655,2053.8,2051.7,0.5510097]
[1770999008318,0.5678168,2053.1,2051.7,0.5510097]
[1770999009021,0.5678168,2053.1,2051.7,0.55611467]
[1770999009022,0.5678168,2052.8,2051.7,0.55611467]
[1770999009219,2.55812912,2052.6,2051.7,0.55611467]
[1770999009515,0.5678168,2053.0,2051.7,0.55611467]
[1770999009722,0.00394728,2053.1,2051.8,0.5510097]
[1770999009922,0.57176408,2053.1,2051.8,0.5510097]
[1770999010818,0.00394728,2053.1,2052.0,0.5510097]
[1770999011022,0.5678168,2053.7,2052.0,0.5510097]
[1770999011615,0.5678168,2054.1,2052.3,0.7947897]
[1770999011819,0.5678168,2054.1,2052.4,0.5510097]
[1770999012121,0.57272433,2054.1,2052.4,0.5510097]
[1770999012326,0.00490753,2054.1,2052.6,0.5510097]
[1770999012523,0.5678168,2053.6,2052.6,0.5510097]
[1770999013022,0.5678168,2053.7,2052.3,0.5510097]
[1770999013222,0.5678168,2053.6,2052.3,0.5510097]
[1770999013422,0.5678168,2053.4,2052.3,0.5510097]
[1770999013817,0.5678168,2054.0,2052.3,0.5510097]
[1770999014126,0.5678168,2053.8,2052.3,0.5510097]
[1770999014622,0.5678168,2053.8,2052.4,0.5510097]
[1770999015026,5.99269,2053.9,2051.8,0.5510097]
[1770999015027,0.5678168,2053.4,2051.8,0.5510097]
[1770999015224,0.5678168,2053.1,2051.8,0.5510097]
[1770999015413,8.208,2053.0,2051.7,0.55611467]
[1770999015620,5.99168,2054.2,2051.9,0.5510097]
[1770999015621,0.5678168,2053.6,2051.9,0.5510097]
[1770999015915,0.5678168,2053.6,2052.1,0.5510097]
[1770999017213,0.5678168,2053.6,2052.3,0.5510097]
[1770999017418,0.5678168,2053.9,2052.3,0.5510097]
[1770999018528,0.5678168,2053.6,2052.3,0.5510097]
[1770999018820,0.5678168,2053.5,2052.3,0.5510097]
[1770999021226,0.5678168,2053.3,2051.8,0.5510097]
[1770999021531,0.5678168,2053.1,2051.8,0.5510097]
[1770999021930,0.5678168,2052.9,2051.8,0.5510097]
[1770999022434,3.59260214,2053.2,2051.7,0.00510497]
[1770999022435,0.5678168,2052.7,2051.7,0.00510497]
[1770999022628,0.5678168,2052.7,2051.7,0.55611467]
[1770999022927,0.5678168,2052.5,2051.1,0.5510097]
[1770999023232,0.24375,2052.6,2050.8,0.5510097]
[1770999023233,0.5678168,2052.0,2050.8,0.5510097]
[1770999024028,0.57151485,2052.0,2050.8,0.55660369]
[1770999024932,0.5678168,2051.8,2050.8,0.5510097]
[1770999025625,0.5678168,2051.8,2050.7,0.24812731]
[1770999025825,0.5678168,2051.8,2050.7,0.25255022]
[1770999026021,0.5678168,2051.6,2050.7,0.25255022]
[1770999026530,0.5678168,2051.6,2050.2,0.5510097]
[1770999026732,6.00181805,2052.0,2050.2,0.5510097]
[1770999026733,0.5678168,2051.4,2050.2,0.5510097]
[1770999027032,0.5678168,2051.4,2049.5,0.5510097]
[1770999027429,0.5678168,2051.4,2049.7,0.5510097]
[1770999027820,0.5678168,2051.7,2050.1,0.5510097]
[1770999028529,0.5678168,2051.7,2050.3,0.5510097]
[1770999030829,0.56374955,2051.9,2050.5,0.53547662]
[1770999032530,0.00369805,2052.0,2050.8,0.24396]
[1770999032734,0.00369805,2052.0,2050.9,0.53547662]
[1770999032735,0.5674476,2052.0,2050.9,0.53547662]
[1770999033125,0.24383,2051.9,2050.9,0.53547662]
[1770999033332,0.56374955,2051.8,2050.4,0.53547662]
[1770999034335,0.56374955,2051.6,2050.4,0.53547662]
[1770999035433,0.56374955,2051.5,2050.4,0.53547662]
[1770999036432,0.56374955,2051.8,2050.4,0.53547662]
[1770999037637,0.56374955,2051.8,2050.6,0.58806571]
[1770999038737,0.00369805,2052.0,2050.6,0.58806571]
[1770999038937,0.00369805,2052.0,2050.8,0.58806571]
[1770999039234,0.00369805,2052.0,2051.0,0.58806571]
[1770999039438,0.00369805,2052.0,2051.0,0.5939892]
[1770999040237,0.00369805,2052.0,2051.2,0.58806571]
[1770999045141,7.934,2052.9,2051.2,0.58806571]
[1770999045142,0.53433926,2053.2,2051.6,0.58806571]
[1770999045445,0.53433926,2053.7,2052.2,0.58806571]
[1770999045741,0.53433926,2053.7,2052.4,0.58806571]
[1770999046236,0.53924041,2053.7,2052.4,0.58806571]
[1770999046437,0.53433926,2053.5,2052.4,0.58806571]
[1770999048644,0.53433926,2053.3,2051.9,0.58806571]
[1770999050650,0.53433926,2053.3,2052.1,0.58806571]
[1770999053954,0.53433926,2053.6,2052.1,0.58806571]
[1770999054151,0.53433926,2053.6,2052.2,0.58806571]
[1770999057753,0.53433926,2053.4,2052.2,0.58806571]
[1770999058054,0.53433926,2053.2,2052.2,0.58806571]
[1770999058650,0.53433926,2053.0,2051.8,0.58806571]
[1770999059545,0.53433926,2052.6,2051.5,2.81397204]
[1770999059752,0.53433926,2052.6,2051.4,0.58806571]
[1770999059946,0.53433926,2052.4,2051.1,0.58806571]
[1770999060154,0.53433926,2052.2,2051.1,0.58806571]
[1770999060350,0.53433926,2052.5,2051.3,0.58806571]
[1770999060549,0.00561265,2052.2,2051.4,0.24389]
[1770999060844,0.53433926,2052.8,2051.5,0.58806571]
[1770999061250,0.24367,2053.3,2051.7,0.58581052]
[1770999061251,0.57994622,2053.2,2051.7,0.58581052]
[1770999061749,0.57994622,2053.0,2051.7,0.58581052]
[1770999062250,0.57994622,2052.8,2051.5,0.58581052]
[1770999062447,0.57994622,2052.6,2051.5,0.58581052]
[1770999063048,0.57994622,2052.4,2051.2,0.58581052]
[1770999063950,0.57994622,2052.6,2051.4,0.58581052]
[1770999065158,0.57994622,2052.5,2051.4,0.58581052]
[1770999067753,0.57994622,2052.3,2051.2,0.58581052]
[1770999068058,0.57994622,2052.1,2051.2,0.58581052]
[1770999068359,0.57994622,2052.4,2051.2,0.58581052]
[1770999068657,0.57994622,2052.4,2051.4,0.58581052]
[1770999068861,0.57994622,2052.7,2051.5,0.58581052]
[1770999070054,7.72371052,2053.0,2051.5,0.58581052]
[1770999070055,0.57994622,2052.5,2051.5,0.58581052]
[1770999070254,0.24379,2052.2,2051.0,3.40570605]
[1770999070456,0.57994622,2051.9,2051.0,0.59173401]
[1770999070958,0.57994622,2051.7,2051.0,0.00592349]
[1770999071257,0.58493241,2051.7,2050.7,0.58581052]
[1770999071458,0.58493241,2051.7,2050.3,2.81397204]
[1770999071459,0.58493241,2051.7,2050.4,0.58581052]
[1770999072152,0.00498619,2051.7,2050.5,0.244]
[1770999072353,0.58493241,2051.7,2050.7,0.58581052]
[1770999072952,0.58493241,2051.7,2050.5,2.81397204]
[1770999072953,0.58493241,2051.7,2050.5,0.58581052]
[1770999073355,0.00498619,2051.7,2050.5,0.58581052]
[1770999073653,0.00498619,2051.7,2050.7,0.58581052]
[1770999074058,0.58493241,2051.7,2050.7,0.58581052]
[1770999074256,0.00498619,2051.7,2050.7,0.58581052]
[1770999074458,0.00498619,2051.7,2051.0,0.58581052]
[1770999074662,0.57994622,2052.2,2051.0,0.58581052]
[1770999074857,0.57994622,2052.2,2051.1,0.58581052]
[1770999075153,0.57994622,2052.2,2051.2,0.58581052]
[1770999075364,0.57994622,2052.7,2051.4,0.58581052]
[1770999075654,0.57994622,2053.0,2051.7,0.58581052]
[1770999075859,0.00524737,2052.7,2051.9,0.58581052]
[1770999076051,0.57994622,2053.3,2052.1,0.58581052]
[1770999076357,0.57994622,2053.3,2052.2,4.51921535]
[1770999076553,0.57994622,2053.3,2052.3,0.58581052]
[1770999076759,0.57994622,2053.8,2052.5,0.58581052]
[1770999077161,0.00527933,2053.8,2052.6,0.58581052]
[1770999077561,0.00527933,2053.8,2052.6,3.39978256]
[1770999077758,0.00527933,2053.8,2052.7,0.58581052]
[1770999077955,0.58522555,2053.8,2052.7,0.58581052]
[1770999081052,0.57994622,2053.6,2052.4,0.58581052]
[1770999082162,0.57994622,2053.4,2052.0,0.58581052]
[1770999083352,0.16850622,2053.4,2052.0,0.58581052]
[1770999085564,0.27723545,2053.2,2051.9,0.00364216]
[1770999085752,0.27723545,2053.2,2051.9,0.58945268]
[1770999087455,0.28077096,2052.9,2051.9,0.58945268]
[1770999088157,0.27825207,2052.6,2051.9,0.00364216]
[1770999090363,0.27825207,2052.6,2051.5,0.58581052]
[1770999090966,0.27950966,2053.3,2051.7,0.53411043]
[1770999091165,0.27950966,2053.3,2051.9,0.53411043]
[1770999091361,0.27950966,2053.3,2052.1,0.53411043]
[1770999091563,0.27806016,2053.5,2052.2,0.24379]
[1770999091765,0.27806016,2053.5,2052.3,0.53411043]
[1770999096665,0.29014229,2053.4,2052.3,0.53411043]
[1770999096869,0.24364,2053.5,2052.3,0.53411043]
[1770999096870,0.29004989,2053.2,2052.3,0.53411043]
[1770999097274,0.29004989,2053.2,2052.0,0.57884214]
[1770999101371,0.28734229,2053.1,2052.0,0.57884214]
[1770999102075,0.2888713,2052.9,2052.0,0.57884214]
[1770999102575,0.2888713,2052.9,2051.9,0.00460979]
[1770999103378,0.2888713,2052.7,2051.9,0.00460979]
[1770999103778,0.2888713,2052.7,2051.9,0.58345193]
[1770999104078,0.28616305,2053.0,2051.9,0.58345193]
[1770999104278,0.28616305,2053.0,2052.0,0.57884214]
[1770999104479,0.28616305,2053.0,2052.2,0.57884214]
[1770999106169,0.00527933,2053.8,2052.6,3.40247788]
[1770999106371,0.00527933,2053.8,2052.8,0.58850584]
[1770999106574,0.00527933,2053.8,2053.0,0.58850584]
[1770999106779,0.1,2054.4,2053.2,0.58850584]
[1770999107082,2.56638824,2054.2,2052.9,3.40247788]
[1770999107280,2.56638824,2053.9,2052.9,0.58850584]
[1770999107480,2.56638824,2053.6,2052.7,0.58850584]
[1770999107877,2.57228694,2053.6,2052.7,0.58850584]
[1770999108482,2.57228694,2053.6,2052.5,0.59029418]
[1770999108775,10.27128694,2053.6,2052.5,0.59029418]
[1770999108973,2.57228694,2053.6,2052.4,0.59029418]
[1770999109179,7.696,2053.5,2052.4,0.59029418]
[1770999109377,7.30656,2053.5,2052.5,0.59029418]
[1770999109574,2.57228694,2053.6,2052.5,0.59029418]
[1770999110383,0.0058987,2053.6,2052.5,3.40426622]
[1770999110579,0.0058987,2053.6,2052.6,0.58927976]
[1770999110883,2.57228694,2053.6,2052.6,0.58927976]
[1770999111881,7.692,2053.5,2052.4,0.5891695]
[1770999112082,2.56638824,2053.3,2052.4,0.5891695]
[1770999112881,7.692,2053.5,2052.4,0.5891695]
[1770999113478,0.24365,2053.4,2052.4,0.5891695]
[1770999113681,7.692,2053.5,2052.2,2.81397204]
[1770999113682,0.24368,2053.2,2052.2,2.81397204]
[1770999113877,0.24368,2053.2,2052.1,3.40188913]
[1770999114081,0.24368,2053.2,2052.1,0.58791709]
[1770999114276,2.56638824,2053.3,2051.9,2.81858183]
[1770999114277,0.24371,2052.9,2051.9,2.81858183]
[1770999114483,0.24375,2052.6,2051.6,0.58791709]
[1770999114686,7.688,2052.5,2051.6,0.58791709]
[1770999114885,7.688,2052.5,2051.4,3.40188913]
[1770999115086,0.24375,2052.6,2051.6,0.58791709]
[1770999115290,7.687,2052.5,2051.6,0.58791709]
[1770999115587,7.686,2053.0,2051.7,0.59262433]
[1770999115788,0.24369,2053.1,2051.7,0.59262433]
[1770999115993,0.24369,2053.1,2051.8,0.59262433]
[1770999115994,7.686,2053.0,2051.8,0.59262433]
[1770999116293,0.24371,2052.9,2051.8,0.59262433]
[1770999116795,0.0058987,2053.6,2052.2,0.59262433]
[1770999116796,7.685,2053.2,2052.2,0.59262433]
[1770999117292,7.685,2053.2,2052.3,0.59262433]
[1770999117686,0.0058987,2053.6,2052.4,0.59117937]
[1770999117893,0.0058987,2053.6,2052.6,0.59117937]
[1770999118496,0.0058987,2053.6,2052.9,0.59117937]
[1770999118694,0.0058987,2053.6,2052.9,3.40515141]
[1770999118997,0.0058987,2053.6,2053.0,0.59117937]
[1770999119391,2.66638824,2054.2,2053.0,0.59117937]
[1770999119987,0.1,2054.2,2053.2,0.58976868]
[1770999120193,0.1,2054.2,2053.4,0.58976868]
[1770999120500,2.56638824,2054.8,2053.7,0.58976868]
[1770999120691,2.56638824,2054.5,2053.5,2.81397204]
[1770999120890,2.56638824,2054.5,2053.4,4.79842451]
[1770999120891,2.56638824,2054.5,2053.4,3.40374072]
[1770999121096,2.56638824,2054.5,2053.5,4.51166995]
[1770999121301,2.5718798,2054.5,2053.4,0.58976868]
[1770999121494,0.00549156,2054.5,2053.4,3.40374072]
[1770999121695,0.00549156,2054.5,2053.5,0.58955783]
[1770999122092,0.00549156,2054.5,2053.6,4.50514465]
[1770999122298,0.00146264,2055.0,2053.9,0.58681205]
[1770999122498,0.00146264,2055.6,2054.0,7.8945513]
[1770999122695,0.00146264,2055.5,2054.2,0.58681205]
[1770999123094,0.00146264,2055.5,2054.4,0.58681205]
[1770999123299,0.00146264,2055.2,2054.3,0.58681205]
[1770999123602,0.00715219,2055.2,2054.3,0.58681205]
[1770999124000,0.00561775,2056.1,2054.3,0.58681205]
[1770999124195,0.00561775,2055.7,2054.5,0.5847345]
[1770999124395,0.24343,2055.3,2054.3,0.5847345]
[1770999124600,0.00561775,2055.1,2054.0,0.5847345]
[1770999124797,0.00561775,2055.4,2054.0,2.81397204]
[1770999124993,0.01142462,2055.4,2054.2,0.5847345]
[1770999125194,0.01142462,2056.0,2054.4,0.5847345]
[1770999125393,0.01142462,2056.0,2054.5,0.58183106]
[1770999125597,0.01501651,2055.4,2054.5,0.58183106]
[1770999125798,0.01501651,2055.3,2054.3,0.58003512]
[1770999126097,0.01501651,2055.1,2054.0,0.58003512]
[1770999126294,0.01501651,2055.0,2054.0,0.58003512]
[1770999127304,0.01501651,2054.7,2053.4,0.58003512]
[1770999129204,0.0178173,2054.1,2053.2,0.00582528]
[1770999129503,0.0178173,2053.5,2052.2,0.57863472]
[1770999129702,0.03470291,2053.3,2051.9,0.5722272]
[1770999130301,5.99345,2053.6,2052.0,0.5722272]
[1770999130302,0.03470291,2053.6,2052.0,0.5722272]
[1770999130506,0.03470291,2053.9,2052.3,0.5722272]
[1770999130908,0.03470291,2053.9,2052.5,0.5722272]
[1770999131501,0.03922432,2053.9,2052.5,0.5722272]
[1770999131706,0.03922432,2053.9,2052.5,3.38619924]
[1770999131707,0.00452141,2053.9,2052.5,3.38619924]
[1770999131911,0.00452141,2053.9,2052.7,0.5722272]
[1770999132210,0.03895552,2053.9,2052.7,0.5722272]
[1770999133412,0.00452141,2053.9,2052.7,0.5722272]
[1770999135614,0.03634955,2053.9,2052.7,0.5722272]
[1770999135816,0.00452141,2053.9,2052.7,0.5722272]
[1770999136213,0.00452141,2053.9,2052.7,3.38619924]
[1770999136414,7.66470176,2054.3,2052.9,0.5722272]
[1770999136810,0.03722317,2054.2,2052.9,0.5722272]
[1770999137318,0.03722317,2054.0,2052.9,0.5722272]
[1770999137517,0.04204001,2054.0,2052.9,0.5722272]
[1770999137706,0.0338622,2053.8,2052.9,0.5722272]
[1770999137911,0.0338622,2053.8,2052.5,0.5722272]
[1770999138108,0.0338622,2053.4,2052.2,0.5722272]
[1770999138313,0.0338622,2053.2,2052.2,0.5722272]
[1770999138612,0.0338622,2053.2,2052.2,0.0722272]
[1770999138815,0.5338622,2053.0,2051.9,0.57674114]
[1770999139014,0.5338622,2053.3,2051.9,0.57674114]
[1770999139217,0.5338622,2053.6,2052.3,0.5722272]
[1770999139522,0.24356,2054.2,2052.3,0.5722272]
[1770999139523,8.15269682,2053.9,2052.3,0.5722272]
[1770999139719,0.53569682,2053.8,2052.3,0.5722272]
[1770999140415,0.53569682,2053.7,2052.3,0.5722272]
[1770999140722,0.24372,2052.8,2051.9,0.00451394]
[1770999140917,0.77944682,2052.6,2051.7,0.5722272]
[1770999141416,0.53569682,2052.5,2051.7,0.5722272]
[1770999141817,0.52722972,2052.3,2051.1,0.5722272]
[1770999142015,0.53266277,2052.3,2051.1,0.57740379]
[1770999142412,0.52722972,2051.7,2050.8,0.5722272]
[1770999142609,0.52722972,2051.8,2050.8,0.5722272]
[1770999142812,0.52722972,2051.6,2050.5,0.5722272]
[1770999143515,0.52722972,2051.6,2050.5,0.57658055]
[1770999144319,0.24385,2051.7,2050.5,0.57658055]
[1770999144515,0.76530639,2051.7,2050.5,0.57658055]
[1770999145214,0.52145639,2051.6,2050.5,0.57658055]
[1770999146410,0.52019358,2051.4,2050.5,0.00435335]
[1770999146612,9.58724434,2051.6,2050.5,1e-08]
[1770999146613,0.52019358,2051.2,2050.5,1e-08]
[1770999148216,8.11619358,2051.2,2050.5,1e-08]
[1770999148520,0.51860895,2051.1,2050.0,0.5722272]
[1770999149319,0.51860895,2051.0,2050.0,0.57567372]
[1770999150621,7.8389,2051.3,2050.0,0.57567372]
[1770999150622,0.51483082,2050.8,2050.0,0.57567372]
[1770999150823,0.51991825,2050.8,2050.0,0.57567372]
[1770999151029,0.00508743,2050.8,2050.0,0.57567372]
[1770999151823,0.52133526,2051.3,2050.0,0.57567372]
[1770999152113,0.24391,2051.2,2050.0,0.57567372]